fUSD/lending_fUSD_20260515
["ID","MTS","AMOUNT","RATE_DAILY","PERIOD"]
[422291065,1778795443000,-2000.0,0.00027397,7]
[422291056,1778795443000,-2000.0,0.00027377,7]
[422291048,1778795443000,-556.0,0.00027205,4]
[422291057,1778795443000,-2000.0,0.00027387,7]
[422291054,1778795443000,-1916.83374946,0.00027357,7]
[422291062,1778795443000,-2000.0,0.00027397,7]
[422291058,1778795443000,-2434.26850511,0.00027397,2]
[422291060,1778795443000,-186.4,0.00027397,7]
[422291055,1778795443000,-2000.0,0.00027367,7]
[422291053,1778795443000,-500.0,0.00027306,30]
[422291063,1778795443000,-1009.93,0.00027397,2]
[422291153,1778795444000,-1001.9,0.000295,2]
[422291144,1778795444000,-550.0,0.00029498,30]
[422291139,1778795444000,-3000.0,0.00029498,30]
[422291141,1778795444000,-550.0,0.00029498,30]
[422291135,1778795444000,-3000.0,0.00029498,30]
[422291140,1778795444000,-550.0,0.00029498,30]
[422291138,1778795444000,-3000.0,0.00029498,30]
[422291137,1778795444000,-3000.0,0.00029498,30]
[422291136,1778795444000,-3000.0,0.00029498,30]
[422291134,1778795444000,-3000.0,0.00029498,30]
[422291142,1778795444000,-550.0,0.00029498,30]
[422291154,1778795444000,-150.0,0.00029601,2]
[422291150,1778795444000,-1000.0,0.00029498,30]
[422291147,1778795444000,-2959.0,0.00029498,30]
[422291145,1778795444000,-298.0,0.00029498,30]
[422291149,1778795444000,-1000.0,0.00029498,30]
[422291146,1778795444000,-3000.0,0.00029498,30]
[422291152,1778795444000,-2978.36,0.000295,7]
[422291151,1778795444000,-989.0,0.00029498,30]
[422291148,1778795444000,-1000.0,0.00029498,30]
[422291155,1778795444000,-2211.57,0.000297,7]
[422291157,1778795444000,-150.0,0.00029819,2]
[422291158,1778795444000,-152.0,0.00029947,3]
[422291156,1778795444000,-2019.66,0.000297,14]
[422291132,1778795444000,-1001.9,0.00029471,2]
[422291143,1778795444000,-550.0,0.00029498,30]
[422291133,1778795444000,-174.0,0.00029498,30]
[422291112,1778795444000,-556.0,0.0002889,6]
[422291130,1778795444000,-1327.0,0.00029445,2]
[422291164,1778795444000,-2089.0,0.000301,120]
[422291105,1778795444000,-556.0,0.00028329,6]
[422291106,1778795444000,-156.58,0.00028493,2]
[422291103,1778795444000,-2420.7,0.00028267,2]
[422291111,1778795444000,-47349.58244565,0.00028889,2]
[422291109,1778795444000,-29884.6,0.000288,2]
[422291108,1778795444000,-500.0,0.00028768,2]
[422291104,1778795444000,-1893.32195916,0.00028311,30]
[422291110,1778795444000,-1106.10975102,0.00028845,3]
[422291107,1778795444000,-180.24546421,0.00028593,2]
[422291113,1778795444000,-1893.32195916,0.00029224,30]
[422291122,1778795444000,-1010.0,0.00029224,30]
[422291131,1778795444000,-556.0,0.00029452,7]
[422291123,1778795444000,-1001.9,0.000293,2]
[422291117,1778795444000,-307.0,0.00029224,30]
[422291114,1778795444000,-200.0,0.00029224,30]
[422291120,1778795444000,-1100.0,0.00029224,30]
[422291115,1778795444000,-200.0,0.00029224,30]
[422291116,1778795444000,-200.0,0.00029224,30]
[422291121,1778795444000,-1100.0,0.00029224,30]
[422291118,1778795444000,-1100.0,0.00029224,30]
[422291125,1778795444000,-1001.9,0.00029357,2]
[422291126,1778795444000,-1001.9,0.00029386,2]
[422291128,1778795444000,-1001.9,0.00029414,2]
[422291127,1778795444000,-522.25409497,0.00029398,2]
[422291129,1778795444000,-1001.9,0.00029443,2]
[422291124,1778795444000,-1001.9,0.00029329,2]
[422291166,1778795444000,-200.0,0.00030137,2]
[422291161,1778795444000,-550.0,0.00029999,2]
[422291162,1778795444000,-650.0,0.0003,2]
[422291200,1778795444000,-257.0,0.00030585,30]
[422291194,1778795444000,-257.0,0.00030585,30]
[422291201,1778795444000,-209.0,0.00030585,30]
[422291203,1778795444000,-3000.0,0.00030585,30]
[422291202,1778795444000,-428.0,0.00030585,30]
[422291193,1778795444000,-162.0,0.00030585,30]
[422291195,1778795444000,-2932.0,0.00030585,30]
[422291204,1778795444000,-3000.0,0.00030585,30]
[422291196,1778795444000,-4071.0,0.00030585,30]
[422291197,1778795444000,-232.0,0.00030585,30]
[422291199,1778795444000,-717.0,0.00030585,30]
[422291198,1778795444000,-179.0,0.00030585,30]
[422291189,1778795444000,-930.0,0.00030518,2]
[422291211,1778795444000,-219.86705452,0.0003065,2]
[422291206,1778795444000,-3000.0,0.00030585,30]
[422291208,1778795444000,-1953.0,0.00030594,30]
[422291209,1778795444000,-1067.43,0.000306,7]
[422291210,1778795444000,-667.16,0.00030613,120]
[422291217,1778795444000,-2176.65195916,0.0003105,30]
[422291216,1778795444000,-2160.98269659,0.000307,2]
[422291214,1778795444000,-2160.98269661,0.000307,2]
[422291212,1778795444000,-219.86705449,0.0003065,2]
[422291215,1778795444000,-2160.98269659,0.000307,2]
[422291213,1778795444000,-219.86705449,0.0003065,2]
[422291218,1778795444000,-150.0,0.00031081,2]
[422291165,1778795444000,-749.99,0.00030137,2]
[422291207,1778795444000,-3000.0,0.00030585,30]
[422291185,1778795444000,-3542.0,0.00030518,2]
[422291205,1778795444000,-3000.0,0.00030585,30]
[422291187,1778795444000,-625.0,0.00030518,2]
[422291186,1778795444000,-926.0,0.00030518,2]
[422291219,1778795444000,-200.0,0.00031096,2]
[422291160,1778795444000,-500.0,0.00029999,2]
[422291159,1778795444000,-151.28305713,0.00029997,2]
[422291163,1778795444000,-556.0,0.00030014,7]
[422291168,1778795444000,-2420.7,0.00030239,2]
[422291175,1778795444000,-150.0,0.00030259,120]
[422291174,1778795444000,-970.0,0.00030259,120]
[422291176,1778795444000,-231.0,0.00030259,120]
[422291169,1778795444000,-3724.0,0.00030259,120]
[422291167,1778795444000,-2119.99195916,0.00030137,30]
[422291178,1778795444000,-399.0,0.00030337,5]
[422291170,1778795444000,-300.0,0.00030259,120]
[422291177,1778795444000,-503.37,0.0003026,120]
[422291190,1778795444000,-556.0,0.00030575,8]
[422291172,1778795444000,-1100.0,0.00030259,120]
[422291188,1778795444000,-1270.0,0.00030518,2]
[422291181,1778795444000,-308.0,0.000305,2]
[422291182,1778795444000,-1000.0,0.000305,2]
[422291192,1778795444000,-345.0,0.00030585,30]
[422291183,1778795444000,-314.0,0.000305,2]
[422291184,1778795444000,-883.0,0.000305,2]
[422291180,1778795444000,-263.02,0.000305,6]
[422291179,1778795444000,-321.0,0.00030337,5]
[422291173,1778795444000,-1100.0,0.00030259,120]
[422291171,1778795444000,-228.0,0.00030259,120]
[422291191,1778795444000,-625.88462833,0.00030584,2]
[422291263,1778795445000,-232.0,0.00032585,30]
[422291257,1778795445000,-556.0,0.0003226,10]
[422291262,1778795445000,-4071.0,0.00032585,30]
[422291260,1778795445000,-257.0,0.00032585,30]
[422291265,1778795445000,-717.0,0.00032585,30]
[422291256,1778795445000,-2420.7,0.0003221,5]
[422291247,1778795445000,-47349.58244565,0.00031798,2]
[422291258,1778795445000,-345.0,0.00032585,30]
[422291255,1778795445000,-150.0,0.00032204,2]
[422291254,1778795445000,-2019.66,0.000321,14]
[422291253,1778795445000,-2211.57,0.000321,7]
[422291264,1778795445000,-179.0,0.00032585,30]
[422291259,1778795445000,-162.0,0.00032585,30]
[422291261,1778795445000,-2932.0,0.00032585,30]
[422291279,1778795445000,-500.0,0.00032877,2]
[422291266,1778795445000,-257.0,0.00032585,30]
[422291269,1778795445000,-1953.0,0.00032594,30]
[422291277,1778795445000,-749.99,0.00032877,2]
[422291276,1778795445000,-1001.84,0.00032877,2]
[422291278,1778795445000,-1000.0,0.00032877,120]
[422291268,1778795445000,-428.0,0.00032585,30]
[422291270,1778795445000,-150.0,0.00032636,2]
[422291271,1778795445000,-171.95920175,0.00032647,5]
[422291275,1778795445000,-2657.0,0.00032877,2]
[422291274,1778795445000,-556.0,0.00032822,10]
[422291273,1778795445000,-179.3,0.0003282,4]
[422291272,1778795445000,-179.3,0.0003282,4]
[422291249,1778795445000,-500.0,0.00031982,2]
[422291267,1778795445000,-209.0,0.00032585,30]
[422291251,1778795445000,-193.9184035,0.00032019,5]
[422291223,1778795445000,-1000.0,0.0003117,2]
[422291250,1778795445000,-700.0,0.00032,2]
[422291220,1778795445000,-200.0,0.000311,2]
[422291280,1778795445000,-500.0,0.00032877,2]
[422291221,1778795445000,-556.0,0.00031137,9]
[422291222,1778795445000,-1000.0,0.0003117,2]
[422291229,1778795445000,-1000.0,0.00031189,2]
[422291227,1778795445000,-1000.0,0.00031189,2]
[422291226,1778795445000,-1000.0,0.00031189,2]
[422291228,1778795445000,-1000.0,0.00031189,2]
[422291225,1778795445000,-1000.0,0.00031189,2]
[422291224,1778795445000,-1847.41533141,0.0003117,2]
[422291230,1778795445000,-215.87760526,0.00031392,5]
[422291232,1778795445000,-1000.0,0.000315,7]
[422291233,1778795445000,-345.0,0.00031585,30]
[422291246,1778795445000,-556.0,0.00031699,9]
[422291237,1778795445000,-4071.0,0.00031585,30]
[422291238,1778795445000,-232.0,0.00031585,30]
[422291240,1778795445000,-717.0,0.00031585,30]
[422291231,1778795445000,-2978.36,0.000314,7]
[422291234,1778795445000,-162.0,0.00031585,30]
[422291239,1778795445000,-179.0,0.00031585,30]
[422291236,1778795445000,-2932.0,0.00031585,30]
[422291242,1778795445000,-209.0,0.00031585,30]
[422291252,1778795445000,-200.0,0.00032055,2]
[422291241,1778795445000,-257.0,0.00031585,30]
[422291245,1778795445000,-13865.15454149,0.00031651,2]
[422291244,1778795445000,-1953.0,0.00031594,30]
[422291243,1778795445000,-428.0,0.00031585,30]
[422291248,1778795445000,-2233.32195916,0.00031963,30]
[422291235,1778795445000,-257.0,0.00031585,30]
[422291281,1778795445000,-500.0,0.00032877,2]
[422291284,1778795445000,-500.0,0.00032877,2]
[422291286,1778795445000,-500.0,0.00032877,2]
[422291319,1778795445000,-179.0,0.00033585,30]
[422291320,1778795445000,-717.0,0.00033585,30]
[422291332,1778795445000,-1300.0,0.00033622,2]
[422291322,1778795445000,-209.0,0.00033585,30]
[422291321,1778795445000,-257.0,0.00033585,30]
[422291323,1778795445000,-428.0,0.00033585,30]
[422291327,1778795445000,-41023.0,0.00033601,30]
[422291330,1778795445000,-1300.0,0.00033622,2]
[422291326,1778795445000,-667.16,0.000336,120]
[422291325,1778795445000,-29884.6,0.000336,2]
[422291324,1778795445000,-1953.0,0.00033594,30]
[422291329,1778795445000,-1300.0,0.00033622,2]
[422291328,1778795445000,-1300.0,0.00033622,2]
[422291318,1778795445000,-232.0,0.00033585,30]
[422291331,1778795445000,-1300.0,0.00033622,2]
[422291335,1778795445000,-1300.0,0.00033622,2]
[422291334,1778795445000,-1300.0,0.00033622,2]
[422291342,1778795445000,-2211.57,0.000338,30]
[422291341,1778795445000,-152.0,0.00033783,4]
[422291340,1778795445000,-41023.0,0.00033773,30]
[422291339,1778795445000,-1855.361,0.00033759,36]
[422291344,1778795445000,-41023.0,0.00033859,30]
[422291288,1778795445000,-2289.98338789,0.00032877,30]
[422291345,1778795445000,-263.02,0.000339,15]
[422291338,1778795445000,-41023.0,0.00033687,30]
[422291336,1778795445000,-1300.0,0.00033622,2]
[422291343,1778795445000,-2019.66,0.000338,14]
[422291346,1778795445000,-667.16,0.00033944,120]
[422291333,1778795445000,-1300.0,0.00033622,2]
[422291316,1778795445000,-2932.0,0.00033585,30]
[422291337,1778795445000,-1251.0,0.00033622,2]
[422291309,1778795445000,-625.0,0.00033518,2]
[422291317,1778795445000,-4071.0,0.00033585,30]
[422291289,1778795445000,-327.52,0.000329,120]
[422291282,1778795445000,-500.0,0.00032877,2]
[422291292,1778795445000,-2686.98398688,0.00032984,7]
[422291290,1778795445000,-250.0,0.00032935,7]
[422291283,1778795445000,-414.01791719,0.00032877,2]
[422291293,1778795445000,-350.0,0.00033014,5]
[422291287,1778795445000,-1262.21765556,0.00032877,60]
[422291306,1778795445000,-41023.0,0.00033516,30]
[422291295,1778795445000,-41023.0,0.00033086,30]
[422291305,1778795445000,-41023.0,0.0003343,30]
[422291307,1778795445000,-3542.0,0.00033518,2]
[422291294,1778795445000,-948.5560267,0.00033083,2]
[422291297,1778795445000,-6013.0,0.00033151,2]
[422291291,1778795445000,-250.0,0.00032935,7]
[422291301,1778795445000,-179.98,0.00033183,60]
[422291298,1778795445000,-10000.0,0.00033165,2]
[422291312,1778795445000,-345.0,0.00033585,30]
[422291311,1778795445000,-930.0,0.00033518,2]
[422291310,1778795445000,-1270.0,0.00033518,2]
[422291308,1778795445000,-926.0,0.00033518,2]
[422291313,1778795445000,-162.0,0.00033585,30]
[422291303,1778795445000,-41023.0,0.00033344,30]
[422291296,1778795445000,-2978.36,0.000331,30]
[422291299,1778795445000,-667.16,0.00033171,120]
[422291315,1778795445000,-257.0,0.00033585,30]
[422291304,1778795445000,-556.0,0.00033384,11]
[422291300,1778795445000,-41023.0,0.00033172,30]
[422291302,1778795445000,-41023.0,0.00033258,30]
[422291373,1778795446000,-2932.0,0.00034585,30]
[422291379,1778795446000,-209.0,0.00034585,30]
[422291383,1778795446000,-41023.0,0.00034632,30]
[422291381,1778795446000,-1953.0,0.00034594,30]
[422291374,1778795446000,-4071.0,0.00034585,30]
[422291376,1778795446000,-179.0,0.00034585,30]
[422291384,1778795446000,-948.5560267,0.00034646,2]
[422291382,1778795446000,-2978.36,0.000346,30]
[422291377,1778795446000,-717.0,0.00034585,30]
[422291378,1778795446000,-257.0,0.00034585,30]
[422291375,1778795446000,-232.0,0.00034585,30]
[422291391,1778795446000,-1500.0,0.00034795,2]
[422291385,1778795446000,-6447.45359822,0.00034681,2]
[422291387,1778795446000,-374.0,0.000347,3]
[422291394,1778795446000,-460.9,0.0003483,7]
[422291389,1778795446000,-41023.0,0.00034718,30]
[422291388,1778795446000,-47349.58244565,0.00034707,2]
[422291395,1778795446000,-41023.0,0.0003489,30]
[422291392,1778795446000,-41023.0,0.00034804,30]
[422291390,1778795446000,-150.0,0.00034781,2]
[422291393,1778795446000,-163.0,0.00034819,11]
[422291396,1778795446000,-1076.01901038,0.00034904,20]
[422291380,1778795446000,-428.0,0.00034585,30]
[422291386,1778795446000,-503.37,0.00034698,120]
[422291369,1778795446000,-41023.0,0.00034547,30]
[422291355,1778795446000,-750.0,0.00034,2]
[422291368,1778795446000,-556.0,0.00034507,12]
[422291398,1778795446000,-1040.73723417,0.00034904,20]
[422291347,1778795446000,-667.16,0.00033944,120]
[422291357,1778795446000,-41023.0,0.00034031,30]
[422291353,1778795446000,-350.0,0.00033973,5]
[422291348,1778795446000,-667.16,0.00033944,120]
[422291358,1778795446000,-41023.0,0.00034117,30]
[422291350,1778795446000,-667.19602393,0.00033944,120]
[422291352,1778795446000,-556.0,0.00033945,11]
[422291349,1778795446000,-667.16,0.00033944,120]
[422291351,1778795446000,-41023.0,0.00033945,30]
[422291356,1778795446000,-1067.43,0.00034,7]
[422291354,1778795446000,-208.3309892,0.00034,30]
[422291359,1778795446000,-1584.0,0.00034179,11]
[422291361,1778795446000,-41023.0,0.00034203,30]
[422291370,1778795446000,-345.0,0.00034585,30]
[422291360,1778795446000,-2420.7,0.00034182,7]
[422291365,1778795446000,-1067.43,0.000343,7]
[422291363,1778795446000,-150.0,0.00034267,2]
[422291371,1778795446000,-162.0,0.00034585,30]
[422291364,1778795446000,-41023.0,0.00034289,30]
[422291372,1778795446000,-257.0,0.00034585,30]
[422291362,1778795446000,-1000.0,0.00034247,120]
[422291366,1778795446000,-41023.0,0.00034375,30]
[422291367,1778795446000,-41023.0,0.00034461,30]
[422291399,1778795446000,-1046.82816328,0.00034904,20]
[422291404,1778795446000,-350.0,0.00034931,5]
[422291405,1778795446000,-1853.21202323,0.00034959,2]
[422291423,1778795446000,-200.0,0.00035062,7]
[422291424,1778795446000,-200.0,0.00035062,7]
[422291432,1778795446000,-225.83777085,0.00035264,14]
[422291431,1778795446000,-1500.0,0.000352,7]
[422291442,1778795446000,-717.0,0.00035585,30]
[422291436,1778795446000,-162.0,0.00035585,30]
[422291434,1778795446000,-11060.98020392,0.00035516,2]
[422291435,1778795446000,-345.0,0.00035585,30]
[422291433,1778795446000,-2371.00825742,0.00035515,2]
[422291437,1778795446000,-257.0,0.00035585,30]
[422291438,1778795446000,-2932.0,0.00035585,30]
[422291440,1778795446000,-232.0,0.00035585,30]
[422291441,1778795446000,-179.0,0.00035585,30]
[422291443,1778795446000,-257.0,0.00035585,30]
[422291445,1778795446000,-428.0,0.00035585,30]
[422291449,1778795446000,-1934.38338737,0.00035615,7]
[422291448,1778795446000,-1865.36488657,0.00035615,7]
[422291444,1778795446000,-209.0,0.00035585,30]
[422291451,1778795446000,-2080.17592889,0.00035615,7]
[422291446,1778795446000,-1953.0,0.00035594,30]
[422291450,1778795446000,-2005.9555727,0.00035615,7]
[422291452,1778795446000,-2157.14243826,0.00035615,7]
[422291402,1778795446000,-1039.74234967,0.00034904,20]
[422291430,1778795446000,-2311.0,0.0003512,11]
[422291428,1778795446000,-200.0,0.00035062,7]
[422291439,1778795446000,-4071.0,0.00035585,30]
[422291425,1778795446000,-200.0,0.00035062,7]
[422291426,1778795446000,-200.0,0.00035062,7]
[422291406,1778795446000,-152.141,0.00034972,120]
[422291397,1778795446000,-1134.81157698,0.00034904,20]
[422291400,1778795446000,-1003.13583573,0.00034904,20]
[422291401,1778795446000,-1064.76513717,0.00034904,20]
[422291403,1778795446000,-1060.14119176,0.00034904,20]
[422291407,1778795446000,-41023.0,0.00034976,30]
[422291409,1778795446000,-483.9887744,0.00034994,3]
[422291419,1778795446000,-200.0,0.00035062,7]
[422291411,1778795446000,-61701.16971157,0.00035,7]
[422291410,1778795446000,-271.2596313,0.00034996,5]
[422291408,1778795446000,-370.9971936,0.00034994,3]
[422291447,1778795446000,-5530.0,0.000356,5]
[422291418,1778795446000,-200.0,0.00035062,7]
[422291427,1778795446000,-200.0,0.00035062,7]
[422291422,1778795446000,-200.0,0.00035062,7]
[422291421,1778795446000,-200.0,0.00035062,7]
[422291420,1778795446000,-200.0,0.00035062,7]
[422291413,1778795446000,-200.0,0.0003501,3]
[422291429,1778795446000,-556.0,0.00035068,13]
[422291416,1778795446000,-41039.0,0.00035062,30]
[422291415,1778795446000,-515.0917441,0.00035059,60]
[422291417,1778795446000,-200.0,0.00035062,7]
[422291412,1778795446000,-208.3309892,0.00035,30]
[422291414,1778795446000,-300.0,0.0003501,3]
[422291491,1778795447000,-200.0,0.00036179,5]
[422291492,1778795447000,-200.0,0.00036179,5]
[422291494,1778795447000,-200.0,0.00036188,5]
[422291493,1778795447000,-150.0,0.00036182,7]
[422291490,1778795447000,-151.74627148,0.00036162,7]
[422291486,1778795447000,-1000.0,0.00036048,2]
[422291485,1778795447000,-1000.0,0.00036048,2]
[422291484,1778795447000,-151.74627148,0.0003604,7]
[422291483,1778795447000,-1067.43,0.00036,7]
[422291495,1778795447000,-150.0,0.0003619,7]
[422291482,1778795447000,-151.74627148,0.00036,7]
[422291488,1778795447000,-151.74627148,0.00036121,7]
[422291498,1778795447000,-151.74627148,0.00036202,7]
[422291502,1778795447000,-151.74627148,0.00036283,7]
[422291496,1778795447000,-556.0,0.00036192,14]
[422291497,1778795447000,-150.0,0.000362,7]
[422291500,1778795447000,-151.74627148,0.00036242,7]
[422291501,1778795447000,-13865.15454149,0.00036275,2]
[422291487,1778795447000,-151.74627148,0.00036081,7]
[422291504,1778795447000,-2978.36,0.000363,30]
[422291503,1778795447000,-150.0,0.00036286,7]
[422291512,1778795447000,-150.0,0.000364,7]
[422291506,1778795447000,-150.0,0.00036308,7]
[422291505,1778795447000,-428.8080751,0.000363,7]
[422291514,1778795447000,-151.74627148,0.00036444,7]
[422291515,1778795447000,-200.0,0.00036454,2]
[422291499,1778795447000,-948.5560267,0.0003621,2]
[422291480,1778795447000,-150.0,0.00036,7]
[422291456,1778795447000,-2494.55939289,0.00035615,7]
[422291478,1778795447000,-150.0,0.00036,7]
[422291453,1778795447000,-2236.95670848,0.00035615,7]
[422291455,1778795447000,-2405.55389864,0.00035615,7]
[422291465,1778795447000,-154.66,0.0003569,30]
[422291516,1778795447000,-200.0,0.00036454,2]
[422291457,1778795447000,-2586.85809042,0.00035615,7]
[422291458,1778795447000,-2682.57183977,0.00035615,7]
[422291454,1778795447000,-2319.72410669,0.00035615,7]
[422291459,1778795447000,-2781.82699784,0.00035615,7]
[422291460,1778795447000,-2884.75459676,0.00035615,7]
[422291464,1778795447000,-556.0,0.0003563,13]
[422291462,1778795447000,-749.99,0.00035616,2]
[422291463,1778795447000,-237.97922959,0.00035616,2]
[422291461,1778795447000,-2991.49051684,0.00035615,7]
[422291466,1778795447000,-733.01,0.000357,120]
[422291468,1778795447000,-350.0,0.0003589,5]
[422291470,1778795447000,-150.0,0.00036,7]
[422291469,1778795447000,-150.0,0.00035981,2]
[422291474,1778795447000,-150.0,0.00036,7]
[422291471,1778795447000,-2211.57,0.00036,30]
[422291473,1778795447000,-150.0,0.00036,7]
[422291472,1778795447000,-2019.66,0.00036,14]
[422291467,1778795447000,-318.0,0.0003576,11]
[422291476,1778795447000,-150.0,0.00036,7]
[422291475,1778795447000,-150.0,0.00036,7]
[422291477,1778795447000,-150.0,0.00036,7]
[422291489,1778795447000,-2420.7,0.00036153,30]
[422291479,1778795447000,-152.22223688,0.00036,7]
[422291481,1778795447000,-150.0,0.00036,7]
[422291513,1778795447000,-151.74627148,0.00036404,7]
[422291507,1778795447000,-151.74627148,0.00036323,7]
[422291510,1778795447000,-150.0,0.00036381,7]
[422291544,1778795447000,-1953.0,0.00036594,30]
[422291552,1778795447000,-556.0,0.00036753,14]
[422291545,1778795447000,-150.0,0.000366,7]
[422291550,1778795447000,-150.0,0.00036727,7]
[422291548,1778795447000,-151.74627148,0.00036646,7]
[422291547,1778795447000,-150.0,0.00036615,7]
[422291551,1778795447000,-151.74627148,0.00036727,7]
[422291554,1778795447000,-151.74627148,0.00036768,7]
[422291553,1778795447000,-150.0,0.00036762,7]
[422291558,1778795447000,-350.0,0.00036849,5]
[422291555,1778795447000,-150.0,0.000368,7]
[422291560,1778795447000,-151.74627148,0.00036889,7]
[422291563,1778795447000,-151.74627148,0.00036929,7]
[422291562,1778795447000,-150.0,0.00036923,7]
[422291557,1778795447000,-151.74627148,0.00036848,7]
[422291559,1778795447000,-150.0,0.00036857,7]
[422291561,1778795447000,-150.0,0.00036909,7]
[422291564,1778795447000,-150.0,0.00036952,7]
[422291567,1778795447000,-181.038,0.00037,2]
[422291566,1778795447000,-150.0,0.00037,2]
[422291568,1778795447000,-150.0,0.00037,7]
[422291569,1778795447000,-150.0,0.00037,7]
[422291571,1778795447000,-151.74627148,0.0003701,7]
[422291570,1778795447000,-150.0,0.00037,30]
[422291565,1778795447000,-151.74627148,0.0003697,7]
[422291572,1778795447000,-500.0,0.00037033,5]
[422291508,1778795447000,-150.0,0.00036364,7]
[422291549,1778795447000,-151.74627148,0.00036687,7]
[422291546,1778795447000,-151.74627148,0.00036606,7]
[422291556,1778795447000,-151.74627148,0.00036808,7]
[422291543,1778795447000,-428.0,0.00036585,30]
[422291541,1778795447000,-257.0,0.00036585,30]
[422291509,1778795447000,-151.74627148,0.00036364,7]
[422291517,1778795447000,-200.0,0.00036454,2]
[422291519,1778795447000,-200.0,0.00036454,2]
[422291520,1778795447000,-460.90905312,0.00036471,7]
[422291521,1778795447000,-151.74627148,0.00036485,7]
[422291524,1778795447000,-926.0,0.00036518,2]
[422291522,1778795447000,-150.0,0.000365,7]
[422291518,1778795447000,-200.0,0.00036454,2]
[422291527,1778795447000,-930.0,0.00036518,2]
[422291525,1778795447000,-625.0,0.00036518,2]
[422291523,1778795447000,-3542.0,0.00036518,2]
[422291526,1778795447000,-1270.0,0.00036518,2]
[422291528,1778795447000,-151.74627148,0.00036525,7]
[422291511,1778795447000,-212007.0,0.000364,30]
[422291531,1778795447000,-150.0,0.00036571,7]
[422291529,1778795447000,-150.0,0.00036545,7]
[422291535,1778795447000,-257.0,0.00036585,30]
[422291536,1778795447000,-2932.0,0.00036585,30]
[422291534,1778795447000,-162.0,0.00036585,30]
[422291533,1778795447000,-345.0,0.00036585,30]
[422291540,1778795447000,-717.0,0.00036585,30]
[422291542,1778795447000,-209.0,0.00036585,30]
[422291538,1778795447000,-232.0,0.00036585,30]
[422291539,1778795447000,-179.0,0.00036585,30]
[422291530,1778795447000,-151.74627148,0.00036566,7]
[422291537,1778795447000,-4071.0,0.00036585,30]
[422291532,1778795447000,-150.0,0.00036571,7]
[422291612,1778795448000,-300.0,0.00037101,2]
[422291614,1778795448000,-300.0,0.00037101,2]
[422291615,1778795448000,-527.74756033,0.00037101,2]
[422291609,1778795448000,-300.0,0.00037101,2]
[422291613,1778795448000,-300.0,0.00037101,2]
[422291603,1778795448000,-300.0,0.00037101,2]
[422291604,1778795448000,-492.69539266,0.00037101,2]
[422291601,1778795448000,-300.0,0.00037101,2]
[422291610,1778795448000,-300.0,0.00037101,2]
[422291600,1778795448000,-300.0,0.00037101,2]
[422291616,1778795448000,-300.0,0.00037101,2]
[422291611,1778795448000,-604.46475032,0.00037101,2]
[422291618,1778795448000,-893.41080806,0.00037101,2]
[422291633,1778795448000,-300.0,0.00037101,2]
[422291623,1778795448000,-300.0,0.00037101,2]
[422291621,1778795448000,-301.79443579,0.00037101,2]
[422291617,1778795448000,-1066.9267668,0.00037101,2]
[422291620,1778795448000,-300.0,0.00037101,2]
[422291619,1778795448000,-726.07109283,0.00037101,2]
[422291626,1778795448000,-300.0,0.00037101,2]
[422291635,1778795448000,-300.0,0.00037101,2]
[422291634,1778795448000,-1912.42447208,0.00037101,2]